bitfinex/quotes_ETHUSD_20250114
["timestamp","ask_amount","ask_price","bid_price","bid_amount"]
[1736887375201,3.0,3217.2,3216.3,0.03108896]
[1736887375374,3.0,3217.2,3216.5,3.10889]
[1736887375776,3.10722,3218.4,3216.2,0.78168558]
[1736887375777,3.12716495,3217.6,3216.2,0.78168558]
[1736887375973,3.0,3217.5,3216.7,3.10868]
[1736887377796,6.10804,3217.5,3216.7,3.10868]
[1736887378007,2.93516495,3217.3,3216.5,3.10892]
[1736887378192,2.93516495,3217.3,3216.0,3.63594688]
[1736887378193,3.10831,3217.2,3216.0,3.63594688]
[1736887378360,3.10831,3217.2,3216.3,3.10913]
[1736887378560,2.93516495,3217.3,3216.0,3.63594688]
[1736887378804,2.93516495,3217.3,3216.4,3.10897]
[1736887379104,3.9318475,3217.3,3216.4,3.10897]
[1736887379665,0.55,3217.2,3216.4,3.10897]
[1736887379872,3.1084,3217.1,3216.2,3.10919]
[1736887381178,2.93516495,3217.3,3216.0,0.63594688]
[1736887381502,0.192,3217.3,3216.5,3.1089]
[1736887381679,6.86538295,3217.3,3216.5,3.1089]
[1736887381877,6.86538295,3217.3,3216.0,0.63594688]
[1736887381878,3.75718295,3217.3,3216.0,0.63594688]
[1736887382095,3.12716495,3217.3,3216.6,3.10886]
[1736887383308,2.93516495,3217.3,3216.7,3.10877]
[1736887383976,0.192,3217.5,3216.7,3.10868]
[1736887384590,6.30003,3217.5,3216.7,3.10868]
[1736887385394,0.55,3216.9,3216.1,3.24401679]
[1736887385596,2.93516495,3216.7,3216.1,3.24401679]
[1736887385798,0.55,3216.9,3216.1,3.24401679]
[1736887385799,3.10919,3216.3,3216.1,3.24401679]
[1736887386409,3.10919,3216.3,3215.6,3.24401679]
[1736887386828,3.10919,3216.3,3215.4,6.35398679]
[1736887386829,2.93516495,3216.1,3215.4,6.35398679]
[1736887387132,2.93516495,3216.1,3215.5,3.10992]
[1736887388446,2.93516495,3216.4,3215.2,3.24401679]
[1736887388606,2.93516495,3216.4,3215.4,3.11003]
[1736887388934,2.93516495,3216.4,3215.6,3.10976]
[1736887389433,3.55876845,3216.4,3215.6,3.10976]
[1736887390633,3.55876845,3216.4,3215.7,3.10972]
[1736887391190,3.55876845,3216.4,3215.3,4.04621679]
[1736887391392,0.192,3216.6,3215.8,3.10955]
[1736887391613,0.55,3216.8,3215.9,3.10945]
[1736887392255,5.93516495,3216.9,3215.5,3.24401679]
[1736887392420,5.93516495,3216.9,3216.1,3.10932]
[1736887393221,2.93516495,3216.6,3215.6,3.24401679]
[1736887393421,2.93516495,3216.3,3215.6,3.24401679]
[1736887393951,2.93516495,3216.3,3215.3,3.11009]
[1736887394115,2.93516495,3216.0,3215.3,3.11009]
[1736887395052,6.04462495,3216.0,3215.1,6.35430679]
[1736887395255,0.6044625,3215.9,3215.1,6.35430679]
[1736887395555,6.23662495,3216.0,3215.1,3.11029]
[1736887395717,6.23662495,3216.0,3215.2,3.11021]
[1736887395923,3.12716495,3216.0,3215.2,3.11021]
[1736887397554,6.23663495,3216.0,3215.2,3.11021]
[1736887398757,3.12716495,3216.0,3215.2,3.11021]
[1736887399784,2.93516495,3216.2,3215.0,0.78239087]
[1736887399984,6.10889,3216.6,3215.0,0.78239087]
[1736887399985,2.93516495,3216.3,3215.5,3.10986]
[1736887400187,6.54905144,3216.3,3215.3,3.11008]
[1736887400522,2.93516495,3216.0,3215.2,3.11021]
[1736887402472,2.93516495,3216.0,3215.0,0.1647835]
[1736887402675,6.54906144,3216.3,3215.4,3.11]
[1736887403005,3.12716495,3216.3,3215.1,3.11027]
[1736887403206,3.12716495,3216.3,3215.1,3.11032]
[1736887403409,3.12716495,3216.3,3215.6,3.10974]
[1736887403563,0.55,3216.5,3215.5,3.90719]
[1736887403915,3.12716495,3216.9,3215.5,0.7973]
[1736887404134,0.192,3216.9,3215.5,4.04131679]
[1736887404319,0.192,3216.9,3216.2,3.10922]
[1736887404479,2.93516495,3217.2,3216.4,3.10903]
[1736887404677,0.192,3217.1,3216.4,3.10903]
[1736887405984,0.192,3217.1,3216.1,1.42828537]
[1736887405985,0.192,3217.1,3216.5,3.10896]
[1736887406164,6.04335495,3217.4,3216.5,3.10896]
[1736887406365,6.23535495,3217.4,3216.5,3.10896]
[1736887406766,0.55,3217.3,3216.5,3.10896]
[1736887408595,3.30019,3217.4,3216.1,4.53758537]
[1736887408596,0.192,3217.4,3216.7,3.10874]
[1736887408795,2.93516495,3217.3,3216.7,3.10874]
[1736887410386,3.0,3217.5,3216.1,3.87500216]
[1736887410579,0.192,3217.7,3217.0,3.10847]
[1736887410776,0.55,3217.7,3217.0,3.10847]
[1736887410977,0.192,3217.8,3217.0,3.10847]
[1736887412060,0.192,3217.8,3216.7,0.7973]
[1736887412061,5.93516495,3217.9,3216.7,3.90603]
[1736887412266,6.04224495,3218.5,3216.8,3.82837978]
[1736887412487,2.93516495,3218.5,3217.5,3.108]
[1736887412688,0.192,3218.7,3217.5,3.108]
[1736887412905,0.192,3218.7,3217.7,3.10777]
[1736887413206,3.48516495,3218.6,3217.7,3.10777]
[1736887413565,3.0,3218.5,3217.7,3.10777]
[1736887414398,3.0,3218.5,3217.4,1.42307856]
[1736887414629,3.0,3218.5,3217.5,3.10795]
[1736887414834,2.93516495,3218.3,3217.3,3.10816]
[1736887415036,2.93516495,3218.3,3217.1,6.90563]
[1736887415348,2.93516495,3218.3,3217.4,3.10808]
[1736887416535,3.10715,3218.4,3217.4,3.10808]
[1736887417709,3.10715,3218.4,3217.5,3.10797]
[1736887418133,3.0,3218.5,3217.3,0.65518859]
[1736887418331,3.0,3218.5,3217.4,3.90535]
[1736887418517,3.0,3218.5,3217.7,3.10778]
[1736887419047,3.0,3218.5,3217.5,3.10792]
[1736887419343,3.0,3218.5,3217.4,0.7973]
[1736887419548,0.8153925,3218.7,3217.4,0.7973]
[1736887419703,3.10636,3219.3,3218.3,3.10722]
[1736887419907,2.93516495,3219.1,3218.1,3.10737]
[1736887420107,2.93516495,3218.8,3217.6,3.0]
[1736887420303,3.10687,3218.7,3217.4,3.7973]
[1736887420555,6.04192495,3218.8,3217.8,3.10767]
[1736887420763,6.04192495,3218.8,3217.4,6.90536]
[1736887420764,3.83935745,3218.8,3217.9,3.10756]
[1736887421356,3.83935745,3218.8,3217.6,0.62187164]
[1736887421556,6.10659,3219.0,3218.1,3.10742]
[1736887421723,0.55,3218.9,3218.1,3.10742]
[1736887424543,0.55,3218.9,3217.6,0.62187164]
[1736887424544,0.55,3218.7,3217.6,0.62187164]
[1736887424743,2.93516495,3218.5,3217.5,3.108]
[1736887424923,6.04219495,3218.5,3217.4,1.40676035]
[1736887425124,6.64641444,3218.5,3217.4,1.40676035]
[1736887425358,3.53938444,3218.5,3217.4,1.40676035]
[1736887425558,2.93516495,3218.5,3217.8,3.10771]
[1736887425778,3.0,3218.7,3217.4,1.40676035]
[1736887426052,2.93516495,3219.0,3218.2,3.10729]
[1736887426258,5.93516495,3219.0,3218.1,3.10735]
[1736887427155,0.55,3218.9,3217.9,3.10754]
[1736887427358,2.93516495,3218.7,3217.9,3.10754]
[1736887428458,3.75529649,3218.8,3217.4,1.40676035]
[1736887428459,2.93516495,3218.4,3217.4,1.40676035]
[1736887428624,2.93516495,3218.4,3217.6,3.1079]
[1736887429032,2.93516495,3218.4,3217.4,0.60946035]
[1736887429258,2.93516495,3218.7,3217.5,0.8197]
[1736887429464,3.22868145,3218.7,3217.8,3.10763]
[1736887429647,0.55,3218.6,3217.6,3.10782]
[1736887429853,3.10704,3218.5,3217.6,3.10782]
[1736887430082,2.93516495,3218.4,3217.6,3.10782]
[1736887430684,2.93516495,3218.4,3217.7,3.10773]
[1736887431783,3.59438245,3218.4,3217.5,3.10797]
[1736887432287,2.93516495,3219.0,3217.4,0.60946035]
[1736887432491,2.93516495,3219.0,3217.5,3.74486495]
[1736887432789,2.93516495,3219.0,3218.2,3.10725]
[1736887433174,2.93516495,3219.0,3217.5,0.8097]
[1736887433491,2.93516495,3219.3,3218.0,0.8097]
[1736887433667,3.29818,3219.4,3218.4,3.10706]
[1736887433860,6.26498295,3219.3,3218.4,3.10706]
[1736887434581,6.26498295,3219.3,3218.2,3.10729]
[1736887434582,0.55,3219.2,3218.2,3.10729]
[1736887434785,2.93516495,3219.0,3218.2,3.10729]
[1736887435586,3.0,3219.1,3218.3,3.1072]
[1736887436689,3.0,3219.1,3218.0,3.91719]
[1736887436690,6.10649,3219.1,3218.1,3.10739]
[1736887436908,0.9591655,3219.0,3218.1,3.10739]
[1736887437115,0.9591655,3219.0,3217.9,0.62930596]
[1736887437271,0.9591655,3219.0,3218.2,3.10731]
[1736887439074,0.9591655,3219.0,3218.4,3.10712]
[1736887439574,3.0,3219.1,3218.4,3.10707]
[1736887440517,5.93516495,3219.5,3218.8,3.10674]
[1736887440795,3.10605,3219.6,3218.4,3.10713]
[1736887440796,3.10598,3219.6,3218.6,3.10687]
[1736887440994,2.93516495,3219.6,3218.4,3.10713]
[1736887441172,2.93516495,3219.6,3218.9,3.10663]
[1736887441598,3.55846144,3219.6,3218.7,3.10676]
[1736887441774,6.66443144,3219.6,3218.7,3.10676]
[1736887442914,3.55846144,3219.6,3218.8,3.10673]
[1736887444073,3.55846144,3219.6,3218.9,3.1066]
[1736887444284,2.93516495,3219.6,3218.9,3.1066]
[1736887444925,2.93516495,3219.6,3218.7,3.10676]
[1736887445127,2.93516495,3219.6,3218.8,3.10671]
[1736887445694,2.93516495,3219.6,3218.9,3.10663]
[1736887445896,2.93516495,3219.6,3218.7,3.10679]
[1736887446232,3.55846745,3219.6,3218.7,3.10679]
[1736887447021,3.55846745,3219.6,3218.3,3.91691]
[1736887447223,3.10607,3219.5,3218.3,3.91691]
[1736887447418,3.10607,3219.5,3218.6,3.10693]
[1736887447621,2.93516495,3219.0,3218.1,3.10739]
[1736887447826,0.2935165,3218.9,3218.1,3.10739]
[1736887449097,0.192,3218.8,3217.5,3.0]
[1736887449303,2.93516495,3218.7,3217.8,3.10761]
[1736887449502,6.04204495,3218.7,3217.8,3.10761]
[1736887450428,2.93516495,3218.7,3217.9,3.10759]
[1736887450646,0.192,3218.8,3217.9,0.7897]
[1736887450855,2.93516495,3219.3,3218.4,3.10706]
[1736887451137,0.2935165,3219.2,3218.4,3.10706]
[1736887451636,3.3998865,3219.2,3218.4,3.10706]
[1736887451998,3.3998865,3219.2,3218.2,3.10728]
[1736887451999,2.93516495,3219.0,3218.2,3.10728]
[1736887452207,0.6233025,3219.6,3218.3,0.03106918]
[1736887452408,1.47492954,3220.8,3218.7,0.7897]
[1736887452623,3.10547,3220.2,3219.1,3.10638]
[1736887452942,3.10547,3220.2,3219.2,3.10634]
[1736887452943,2.93516495,3220.1,3219.2,3.10634]
[1736887453103,6.04067495,3220.1,3219.1,3.10645]
[1736887453305,0.192,3220.3,3218.9,3.10659]
[1736887453306,2.93516495,3219.8,3218.9,3.10659]
[1736887453836,6.04094495,3219.8,3218.9,3.10659]
[1736887454197,6.64503945,3219.8,3218.6,3.2378356]
[1736887454401,2.93516495,3219.5,3218.7,3.10679]
[1736887455928,2.93516495,3219.5,3218.8,3.10674]
[1736887459340,2.93516495,3219.5,3218.6,3.73999086]
[1736887459540,2.93516495,3219.5,3218.7,3.10682]
[1736887459956,0.192,3219.6,3218.6,0.63310086]
[1736887460567,0.192,3219.6,3218.8,3.10666]
[1736887461733,0.55,3219.5,3218.6,3.74001086]
[1736887461934,0.55,3219.5,3218.6,3.10691]
[1736887462863,0.55,3219.5,3218.3,3.10719]
[1736887463080,0.55,3219.5,3218.6,3.10686]
[1736887463836,0.55,3219.5,3218.7,3.10676]
[1736887464747,0.55,3219.5,3218.5,0.61539897]
[1736887464950,0.55,3219.5,3218.6,3.10692]
[1736887465186,2.93516495,3219.4,3218.6,3.10692]
[1736887467984,2.93516495,3219.4,3218.5,0.61539897]
[1736887467985,0.55,3219.5,3218.7,3.10677]
[1736887468876,4.10545945,3219.6,3219.0,3.1065]
[1736887468877,0.192,3219.6,3219.0,3.1065]
[1736887469380,0.192,3219.6,3218.6,3.10694]
[1736887469381,0.192,3219.9,3218.7,3.10684]
[1736887469580,3.435557,3219.8,3218.9,3.10662]
[1736887469785,0.329767,3219.8,3219.0,3.10654]
[1736887469982,3.329767,3219.8,3219.0,3.10654]
[1736887470787,3.329767,3219.8,3218.5,0.61539897]
[1736887470788,2.93516495,3219.6,3218.8,3.10669]
[1736887471294,0.329767,3219.8,3218.9,3.10664]
[1736887471787,3.329767,3219.8,3218.5,0.61539897]
[1736887471963,3.0,3219.8,3219.1,3.10639]
[1736887473804,3.0,3219.8,3218.9,3.10656]
[1736887473950,3.0,3219.8,3218.7,3.1068]
[1736887473951,3.0,3219.8,3219.1,3.10645]
[1736887474147,3.0,3219.8,3219.0,3.10646]
[1736887474419,3.0,3219.8,3219.1,3.10645]
[1736887474622,3.92328649,3219.8,3219.1,3.10645]
[1736887475014,7.02908649,3219.8,3218.9,3.10658]
[1736887476138,3.92328649,3219.8,3218.6,0.7632]
[1736887476335,3.0,3219.8,3219.1,3.10642]
[1736887476508,0.192,3219.9,3219.2,3.10635]
[1736887476717,3.12716495,3219.9,3219.2,3.10635]
[1736887477020,2.93516495,3219.9,3219.2,3.10635]
[1736887478243,2.93516495,3219.9,3218.8,6.21348]
[1736887478439,2.93516495,3219.9,3219.2,3.10629]
[1736887479005,2.93516495,3219.9,3218.9,6.3444856]
[1736887479204,2.93516495,3219.9,3219.5,3.10602]
[1736887480933,6.12716495,3220.2,3219.5,3.10602]
[1736887481244,5.93516495,3220.2,3219.5,3.10602]
[1736887481537,5.93516495,3220.2,3219.6,3.10596]
[1736887481927,5.93516495,3220.2,3219.2,3.10632]
[1736887482128,5.93516495,3220.2,3219.4,3.10611]
[1736887482343,2.93516495,3220.5,3219.7,3.10587]
[1736887482516,2.93516495,3220.5,3219.7,3.10579]
[1736887482848,3.0,3220.4,3219.5,3.10601]
[1736887483023,2.93516495,3220.2,3219.5,3.10601]
[1736887484354,2.93516495,3220.2,3219.2,3.2378356]
[1736887484355,2.93516495,3219.9,3219.2,3.2378356]
[1736887484752,2.93516495,3219.9,3219.3,3.10625]
[1736887484937,6.04059495,3220.2,3219.3,3.10625]
[1736887485120,2.93516495,3220.2,3219.1,3.10644]
[1736887485651,2.93516495,3220.2,3219.3,3.10617]
[1736887485861,2.93516495,3220.2,3219.1,3.10644]
[1736887486018,2.93516495,3220.2,3219.5,3.10605]
[1736887488350,2.93516495,3220.5,3219.8,3.1057]
[1736887488946,2.96429779,3220.5,3219.8,3.1057]
[1736887490457,2.96429779,3220.5,3219.4,3.90331]
[1736887490458,0.02913284,3220.5,3219.6,3.10596]
[1736887490755,6.03998495,3220.8,3219.8,3.1057]
[1736887490958,2.93516495,3220.5,3219.8,3.1057]
[1736887491346,0.02917805,3220.4,3219.8,3.1057]
[1736887492262,2.93516495,3220.2,3219.6,3.10592]
[1736887492573,0.02721909,3220.1,3219.6,3.72571716]
[1736887494345,2.93516495,3219.9,3219.2,3.10636]
[1736887495161,2.93516495,3219.9,3218.9,3.10658]
[1736887495367,2.93516495,3220.2,3219.4,3.10609]
[1736887495554,3.53920644,3220.2,3219.5,3.10605]
[1736887496341,3.53920644,3220.2,3219.3,3.10622]
[1736887496560,3.53920644,3220.2,3219.4,3.10616]
[1736887496962,3.53920644,3220.2,3219.5,0.03105886]
[1736887496963,2.93516495,3220.2,3219.5,0.03105886]
[1736887497173,3.10515,3220.5,3219.5,0.03105886]
[1736887497174,6.04031495,3220.5,3219.5,3.106]
[1736887497490,2.93516495,3219.9,3219.3,3.10622]
[1736887497776,2.93516495,3219.9,3219.2,3.25358356]
[1736887498073,6.04084495,3219.9,3219.1,3.1064]
[1736887498237,0.6040845,3219.8,3219.1,3.1064]
[1736887498778,3.7098645,3219.8,3218.9,3.71774066]
[1736887498943,0.6040845,3219.8,3219.0,3.10653]
[1736887499384,2.93516495,3219.6,3219.0,3.10653]
[1736887500277,2.93516495,3219.8,3219.1,3.10645]
[1736887500882,2.93516495,3219.8,3218.9,0.61114066]
[1736887501188,2.93516495,3220.0,3219.2,3.10634]
[1736887501346,3.53922545,3220.0,3219.2,3.10634]
[1736887501855,3.0,3220.3,3219.0,0.7641]
[1736887501856,2.93516495,3220.3,3219.0,0.7641]
[1736887502067,2.93516495,3220.3,3219.6,3.10594]
[1736887503093,2.93516495,3220.3,3219.4,3.10612]
[1736887503306,2.93516495,3220.0,3219.4,3.10612]
[1736887503596,2.93516495,3220.0,3219.3,3.25471895]
[1736887503814,3.29715,3220.5,3219.1,3.25471895]
[1736887503815,2.93516495,3219.7,3219.1,3.25471895]
[1736887504309,2.93516495,3219.7,3218.8,3.10673]
[1736887504790,0.55,3219.6,3218.8,3.10673]
[1736887505969,0.55,3219.6,3218.6,3.89049092]
[1736887506244,0.55,3219.6,3218.9,3.10663]
[1736887506582,2.93516495,3219.1,3218.6,3.25471895]
[1736887507102,2.93516495,3219.5,3218.6,3.25471895]
[1736887507246,2.93516495,3219.9,3219.1,3.10645]
[1736887507448,0.55,3219.8,3218.7,3.87094]
[1736887507649,0.192,3220.0,3219.3,3.10624]
[1736887507850,0.192,3220.0,3219.3,3.10622]
[1736887508094,0.192,3220.0,3219.4,3.10615]
[1736887509765,2.93516495,3220.1,3219.3,0.7641]
[1736887510102,6.04011495,3220.7,3219.8,3.10573]
[1736887510281,3.68553135,3220.6,3219.8,3.10573]
[1736887510600,0.55,3220.5,3219.8,3.10573]
[1736887511179,2.93516495,3220.7,3219.9,3.10568]
[1736887511394,2.93516495,3220.7,3220.0,3.10557]
[1736887512327,0.55,3220.6,3219.8,3.10575]
[1736887512626,0.55,3220.3,3219.6,3.25471895]
[1736887512923,0.55,3220.0,3219.5,3.25471895]
[1736887513529,0.55,3220.0,3219.2,3.25471895]
[1736887513723,2.93516495,3220.1,3219.4,3.10616]
[1736887513893,2.93516495,3220.4,3219.5,3.10601]
[1736887514073,0.6040285,3220.3,3219.6,3.10595]
[1736887514274,2.93516495,3220.4,3219.6,3.10595]
[1736887515285,6.12716495,3220.8,3219.6,0.7641]
[1736887515699,2.93516495,3220.5,3219.6,0.7641]
[1736887515897,0.55,3220.4,3219.6,3.10593]
[1736887517041,0.55,3220.4,3219.3,4.01881895]
[1736887517042,2.93516495,3219.9,3219.3,3.25471895]
[1736887517385,2.93516495,3220.2,3219.4,3.10616]
[1736887518122,3.10532,3220.3,3219.0,7.78137492]
[1736887518123,2.93516495,3220.5,3219.8,3.10569]
[1736887518307,3.10497,3220.7,3219.8,3.10569]
[1736887518620,3.0,3220.6,3219.8,3.10569]
[1736887519027,0.55,3220.6,3219.8,3.10569]
[1736887519462,0.55,3220.6,3219.9,3.10562]
[1736887520036,3.6232135,3220.7,3220.0,3.10558]
[1736887521048,0.63328199,3221.3,3219.7,3.7938]
[1736887521329,2.93516495,3221.7,3220.1,0.7616]
[1736887521528,5.34213,3222.6,3221.0,3.10459]
[1736887521746,2.93516495,3222.2,3220.7,3.86651]
[1736887522029,6.03892495,3221.9,3220.9,3.10464]
[1736887522325,6.03892495,3221.9,3220.5,6.35980895]
[1736887522326,2.93516495,3221.6,3220.8,3.10481]
[1736887522735,0.55,3221.5,3220.8,3.10481]
[1736887523234,0.55,3221.5,3220.6,3.10495]
[1736887523738,0.55,3221.5,3220.4,4.6248969]
[1736887523897,0.55,3221.5,3220.7,3.10489]
[1736887524098,3.12716495,3221.9,3220.4,4.37017795]
[1736887524336,0.192,3221.9,3220.4,4.37017795]
[1736887524642,6.03885495,3222.0,3220.4,4.37017795]
[1736887524643,2.93516495,3222.0,3220.8,0.7616]
[1736887524847,2.93516495,3222.0,3221.2,3.1044]
[1736887525198,2.93516495,3222.0,3221.3,3.10431]
[1736887525446,2.93516495,3222.0,3220.9,3.10468]
[1736887525648,2.93516495,3222.0,3221.2,3.10437]
[1736887525852,2.93516495,3222.0,3220.8,0.7616]
[1736887526014,2.93516495,3222.0,3221.1,3.10452]
[1736887526221,0.55,3221.9,3220.8,0.7616]
[1736887526556,0.55,3221.7,3220.9,3.10467]
[1736887526999,0.55,3221.9,3221.0,3.10462]
[1736887527199,6.03889495,3222.0,3221.1,3.10447]
[1736887527435,0.2935165,3222.1,3220.8,0.7616]
[1736887527641,6.23065495,3222.2,3221.3,3.10433]
[1736887528003,0.55,3222.1,3221.4,0.03104004]
[1736887528228,0.55,3222.1,3221.3,3.10433]
[1736887528615,2.93516495,3222.5,3221.7,3.1039]
[1736887529141,3.55,3222.5,3221.7,3.1039]
[1736887529304,6.65318,3222.5,3221.1,0.7616]
[1736887529505,6.65318,3222.5,3221.5,3.10405]
[1736887529808,2.93516495,3222.9,3221.9,3.10375]
[1736887530020,6.03792495,3223.0,3222.0,3.10365]
[1736887530220,3.53895745,3223.0,3222.1,3.10355]
[1736887530610,0.55,3222.9,3222.1,3.10355]
[1736887531355,3.53895745,3223.0,3222.2,3.10346]
[1736887531549,0.192,3223.3,3222.4,3.10322]
[1736887531550,3.0,3223.2,3222.4,3.10322]
[1736887531753,0.005,3223.4,3222.3,0.8277]
[1736887531957,0.005,3223.4,3222.6,3.10305]
[1736887532341,0.005,3223.4,3222.7,0.03102615]
[1736887532653,0.02923511,3223.3,3222.6,3.10305]
[1736887534268,0.02923511,3223.3,3222.3,0.8277]
[1736887534269,0.02923511,3223.3,3222.3,3.93098]
[1736887534555,3.10251,3223.2,3222.3,0.8277]
[1736887535139,3.10268,3223.1,3222.1,3.73965085]
[1736887535340,0.02872039,3223.0,3222.1,3.10351]
[1736887535680,3.13143039,3223.0,3222.1,3.10351]
[1736887536123,3.13143039,3223.0,3222.0,0.8277]
[1736887536323,3.13143039,3223.0,3222.1,3.0]
[1736887536524,0.02872039,3223.0,3222.1,3.10353]
[1736887536936,3.10261,3223.1,3222.1,3.10353]
[1736887537271,0.55,3223.2,3222.0,0.8277]
[1736887537272,3.13143017,3223.0,3222.0,0.8277]
[1736887537560,0.02873017,3223.0,3222.1,3.10354]
[1736887537746,3.65255,3223.2,3222.1,3.10354]
[1736887538146,0.02783984,3223.1,3222.1,3.10354]
[1736887538351,0.02783984,3223.1,3222.0,0.8277]
[1736887538667,2.93516495,3222.5,3221.6,3.10402]
[1736887538867,0.68939532,3223.1,3221.9,3.10367]
[1736887538868,2.93516495,3222.8,3221.9,3.10367]
[1736887539162,0.02758033,3222.4,3221.9,3.10367]
[1736887539364,2.93516495,3222.5,3221.5,3.0]
[1736887539525,0.55,3222.3,3221.2,3.10435]
[1736887539729,3.10373,3222.0,3221.0,3.10454]
[1736887539949,0.55,3222.1,3220.9,3.8277]
[1736887540148,0.55,3221.8,3220.9,3.9324]
[1736887540464,2.93516495,3222.2,3221.2,3.10441]
[1736887540764,0.55,3222.1,3221.2,3.10441]
[1736887541659,3.65357,3222.1,3221.2,3.10441]
[1736887541997,2.93516495,3222.2,3221.2,3.10434]
[1736887542566,6.03863495,3222.2,3221.3,3.10431]
[1736887543967,0.55,3221.8,3220.9,3.93234]
[1736887544167,2.93516495,3221.6,3220.7,3.1049]
[1736887544329,2.93516495,3221.6,3220.8,3.10478]
[1736887544530,0.02742001,3221.5,3220.8,3.10478]
[1736887544943,0.55,3221.8,3220.8,3.10478]
[1736887544944,3.65386,3221.8,3220.8,3.10478]
[1736887545140,0.02740143,3221.4,3220.8,3.10478]
[1736887545375,3.10395,3221.7,3220.8,3.10478]
[1736887545572,0.02734567,3221.3,3220.8,3.10478]
[1736887545741,3.10395,3221.7,3220.8,3.10478]
[1736887545928,0.02732708,3221.2,3220.8,3.10478]
[1736887546253,0.0273085,3221.1,3220.8,3.10478]
[1736887546461,0.0273085,3221.1,3220.6,0.8277]
[1736887546658,3.65393,3221.8,3220.6,0.8277]
[1736887546971,0.02732709,3221.0,3220.9,3.1047]
[1736887547167,0.55,3221.8,3220.7,3.10491]
[1736887547370,3.1035,3222.2,3220.8,3.10481]
[1736887547539,3.70736649,3222.2,3220.9,3.0]
[1736887547738,0.55,3222.1,3221.2,3.10435]
[1736887550076,3.0,3222.3,3221.1,0.62211221]
[1736887550488,3.65368,3222.0,3220.9,3.10463]
[1736887550692,2.93516495,3221.8,3220.9,3.10463]
[1736887550889,2.93516495,3221.5,3220.7,3.10487]
[1736887551503,2.93516495,3221.5,3220.5,3.1051]
[1736887551504,0.55,3221.4,3220.5,3.1051]
[1736887551811,3.65427,3221.4,3220.5,3.1051]
[1736887552002,2.93516495,3221.2,3220.3,0.7908]
[1736887552202,2.93516495,3221.2,3220.3,3.10527]
[1736887553002,6.03960495,3221.2,3220.3,3.10527]
[1736887553420,2.93516495,3221.2,3220.4,3.10518]
[1736887553717,3.12716495,3221.5,3220.7,3.10486]
[1736887554484,3.12716495,3221.5,3220.2,0.63633621]
[1736887554684,0.192,3221.5,3220.8,3.10477]
[1736887555016,3.12716495,3221.5,3220.6,3.10497]
[1736887555815,3.12716495,3221.5,3220.2,0.63633621]
[1736887555816,2.93516495,3221.2,3220.2,0.63633621]
[1736887556017,6.03961495,3221.2,3220.3,3.10522]
[1736887556914,3.10454,3221.1,3220.2,3.63633621]
[1736887557224,3.10454,3221.1,3220.2,3.10532]
[1736887557387,3.65464,3221.0,3219.8,3.10575]
[1736887557586,0.55,3221.0,3220.0,3.10559]
[1736887557788,0.55,3221.0,3219.9,3.0]
[1736887557789,0.55,3221.1,3219.9,3.10564]
[1736887558021,3.65455,3221.1,3220.2,3.10531]
[1736887558214,0.55,3221.1,3220.3,3.10528]
[1736887558585,2.93516495,3221.2,3220.0,0.62203233]
[1736887558816,2.93516495,3221.2,3220.3,3.1052]
[1736887559019,2.93516495,3221.2,3220.4,3.10512]
[1736887559534,6.03964495,3221.2,3220.2,3.10537]
[1736887559901,6.03964495,3221.2,3220.3,3.10524]
[1736887560296,3.10412,3221.6,3220.6,3.10499]
[1736887560500,3.10422,3221.5,3220.6,3.10499]
[1736887560730,0.55,3221.4,3220.6,3.10499]
[1736887560951,2.93516495,3221.0,3220.2,3.10539]
[1736887562048,6.03979495,3221.0,3220.1,3.10547]
[1736887562215,2.93516495,3221.0,3220.2,3.10537]
[1736887564445,2.93516495,3221.0,3219.9,3.62904544]
[1736887564631,3.52846362,3221.5,3220.6,3.105]
[1736887564632,2.93516495,3221.3,3220.6,3.105]
[1736887565506,6.03955495,3221.3,3220.1,0.8075]
[1736887565708,2.93516495,3221.3,3220.1,0.8075]
[1736887566025,5.93516495,3221.6,3220.9,3.10469]
[1736887566227,2.93516495,3221.6,3221.0,3.10456]
[1736887566443,2.93516495,3221.6,3220.7,0.8075]
[1736887566444,2.93516495,3221.9,3221.1,3.10451]
[1736887566622,2.93516495,3221.9,3221.2,3.1044]
[1736887567033,2.93516495,3222.2,3220.7,3.8075]
[1736887567203,2.93516495,3222.2,3220.9,3.0]
[1736887567549,3.10328,3222.4,3221.6,3.10402]
[1736887567708,3.7263245,3222.4,3221.6,3.10402]
[1736887567915,2.93516495,3222.2,3221.6,3.10402]
[1736887568114,2.93516495,3222.2,3221.4,3.10418]
[1736887568554,2.93516495,3221.9,3220.9,3.0]
[1736887569019,2.93516495,3221.9,3221.2,3.10436]
[1736887569424,6.03898495,3221.9,3220.9,3.10463]
[1736887569625,6.03930495,3221.6,3220.6,6.35970895]
[1736887570033,2.93516495,3221.3,3220.4,0.8075]
[1736887570271,2.93516495,3221.3,3220.4,3.10514]
[1736887570420,6.03953495,3221.3,3220.4,3.10514]
[1736887570625,2.93516495,3221.3,3220.3,3.0]
[1736887571224,3.48516495,3221.5,3220.3,3.0]
[1736887571519,3.10428,3221.4,3220.5,3.10503]
[1736887571721,3.10439,3221.3,3220.4,3.10518]
[1736887571958,3.10439,3221.3,3220.3,3.1053]
[1736887572156,6.93787145,3221.5,3220.5,3.1051]
[1736887572520,6.93787145,3221.5,3220.2,3.62069265]
[1736887572521,2.93516495,3221.8,3220.7,3.10489]
[1736887572725,2.93516495,3221.8,3221.0,3.10461]
[1736887573557,3.65396,3221.7,3220.7,3.10485]
[1736887573763,2.93516495,3221.2,3220.5,3.10508]
[1736887573922,2.93516495,3221.5,3220.8,3.10481]
[1736887575360,6.03930495,3221.5,3220.2,4.53356265]
[1736887575545,6.03930495,3221.5,3220.3,3.0]
[1736887575767,2.93516495,3221.2,3220.2,1.42819265]
[1736887576156,2.93516495,3221.2,3220.4,3.10519]
[1736887576479,2.93516495,3221.2,3220.5,3.10501]